bitfinex/quotes_SOLUSD_20250721
["timestamp","ask_amount","ask_price","bid_price","bid_amount"]
[1753081056540,37.3,189.42,189.41,0.69]
[1753081057251,37.3,189.42,189.41,0.03]
[1753081057458,4.514916,189.44,189.41,0.69]
[1753081057632,5.27848819,189.45,189.41,0.03]
[1753081057633,4.514916,189.45,189.41,0.03]
[1753081057833,37.3,189.44,189.41,0.69]
[1753081058348,37.3,189.44,189.42,0.66]
[1753081058559,37.3,189.44,189.43,0.66]
[1753081059225,37.3,189.44,189.41,0.69]
[1753081059631,4.514916,189.42,189.41,0.03]
[1753081059835,37.3,189.42,189.41,0.03]
[1753081060365,37.3,189.42,189.41,0.69]
[1753081062525,37.3,189.42,189.41,0.89]
[1753081063142,11.074216,189.46,189.41,10.68446829]
[1753081063339,37.28,189.45,189.42,0.68]
[1753081063538,37.28,189.45,189.43,0.68]
[1753081063859,37.28,189.45,189.41,10.02446829]
[1753081063860,6.5593,189.46,189.44,0.68]
[1753081064054,37.28,189.45,189.44,0.68]
[1753081064439,37.28,189.45,189.41,5.50955229]
[1753081064756,21.29959997,189.42,189.41,0.03]
[1753081064967,58.57959997,189.42,189.41,0.03]
[1753081065760,42.55927357,189.42,189.41,0.03]
[1753081065962,47.07418957,189.42,189.41,0.03]
[1753081066335,6.071416,189.43,189.41,0.03]
[1753081066672,37.28,189.42,189.41,0.03]
[1753081067261,37.28,189.42,189.41,0.71]
[1753081070069,9.79367454,189.44,189.41,0.03]
[1753081070070,5.27899656,189.43,189.41,0.03]
[1753081070357,37.28,189.42,189.41,0.03]
[1753081070559,41.794916,189.42,189.41,0.03]
[1753081072144,4.514916,189.43,189.41,0.03]
[1753081072351,37.28,189.42,189.41,0.03]
[1753081072539,37.28,189.42,189.41,0.71]
[1753081072845,37.28,189.42,189.41,0.03]
[1753081073160,4.514916,189.43,189.41,0.03]
[1753081073350,37.28,189.42,189.41,0.03]
[1753081074239,47.07418957,189.42,189.41,0.03]
[1753081074652,47.62418957,189.42,189.41,0.03]
[1753081075270,42.55927357,189.42,189.41,0.03]
[1753081075439,47.07418957,189.42,189.41,0.03]
[1753081076666,42.55927357,189.42,189.41,0.03]
[1753081076959,37.28,189.42,189.41,0.71]
[1753081077165,4.514916,189.43,189.41,0.71]
[1753081077489,37.28,189.42,189.41,0.03]
[1753081077773,37.28,189.42,189.41,0.71]
[1753081077968,37.28,189.42,189.41,0.03]
[1753081079088,9.79406323,189.43,189.41,0.03]
[1753081079240,37.28,189.42,189.41,0.03]
[1753081079746,9.79406323,189.43,189.41,0.03]
[1753081079947,37.28,189.42,189.41,0.03]
[1753081080163,47.07418957,189.42,189.41,0.03]
[1753081080749,47.62418957,189.42,189.41,0.03]
[1753081081165,47.07418957,189.42,189.41,0.03]
[1753081083182,41.794916,189.42,189.41,0.03]
[1753081083852,47.07418957,189.42,189.41,0.03]
[1753081084360,41.794916,189.42,189.41,0.03]
[1753081084750,4.514916,189.43,189.41,0.71]
[1753081085077,37.26,189.42,189.41,0.71]
[1753081085451,37.26,189.42,189.41,0.03]
[1753081085773,42.324916,189.42,189.41,0.03]
[1753081086474,47.60418957,189.42,189.41,0.03]
[1753081089168,47.05418957,189.42,189.41,0.03]
[1753081090080,47.60418957,189.42,189.41,0.03]
[1753081090388,64.38887354,189.42,189.41,0.03]
[1753081093276,26.57887354,189.42,189.41,0.03]
[1753081093470,63.83887354,189.42,189.41,0.03]
[1753081094495,26.57887354,189.42,189.41,0.03]
[1753081094689,63.83887354,189.42,189.41,0.03]
[1753081095591,26.57887354,189.42,189.41,0.03]
[1753081095761,63.83887354,189.42,189.41,0.03]
[1753081098488,47.05418957,189.42,189.41,0.03]
[1753081099767,64.38887354,189.42,189.41,0.03]
[1753081099961,63.83887354,189.42,189.41,0.03]
[1753081100865,64.38887354,189.42,189.41,0.03]
[1753081101259,16.78468397,189.41,189.37,0.03]
[1753081101576,4.514916,189.38,189.37,0.03]
[1753081101780,58.55959997,189.38,189.37,0.03]
[1753081101987,59.10959997,189.38,189.37,1e-08]
[1753081102163,63.62451597,189.38,189.34,0.03]
[1753081102364,47.29959997,189.35,189.34,0.03]
[1753081102701,89.84082521,189.35,189.34,0.03]
[1753081102863,90.39082521,189.35,189.34,0.03]
[1753081104566,90.39082521,189.35,189.33,0.03]
[1753081104567,34.59510414,189.34,189.33,0.03]
[1753081104771,35.14510414,189.34,189.33,0.03]
[1753081107179,35.14510414,189.34,189.31,1.28090458]
[1753081107180,47.29959997,189.32,189.31,1.28090458]
[1753081107365,84.55959997,189.32,189.31,1.28090458]
[1753081107689,85.10959997,189.32,189.31,1.28090458]
[1753081107862,16.78468397,189.31,189.3,0.2]
[1753081108063,21.84959997,189.31,189.3,0.2]
[1753081108473,16.78468397,189.29,189.23,12.45907671]
[1753081108676,63.84277833,189.28,189.23,12.45907671]
[1753081108879,59.32786233,189.28,189.24,0.72]
[1753081109085,63.84277833,189.28,189.25,0.72]
[1753081110078,58.55959997,189.28,189.25,0.72]
[1753081110520,4.514916,189.28,189.27,0.75]
[1753081110678,37.26,189.28,189.27,0.75]
[1753081111300,26.0,189.31,189.27,0.75]
[1753081111501,37.26,189.3,189.27,5.264916]
[1753081111686,37.26,189.29,189.28,0.72]
[1753081113700,41.774916,189.29,189.27,0.03]
[1753081113898,21.29959997,189.28,189.27,0.03]
[1753081114475,4.514916,189.28,189.27,0.03]
[1753081114680,4.514916,189.28,189.27,0.75]
[1753081115103,41.774916,189.28,189.27,0.75]
[1753081115698,41.774916,189.28,189.27,0.03]
[1753081116679,63.84277833,189.28,189.27,0.03]
[1753081117679,64.39277833,189.28,189.27,0.03]
[1753081117883,75.12639433,189.28,189.27,0.03]
[1753081120107,76.64009433,189.28,189.27,0.03]
[1753081123000,42.78468397,189.27,189.26,0.2]
[1753081123203,52.36451597,189.27,189.26,0.2]
[1753081123796,43.33468397,189.27,189.26,0.2]
[1753081124099,94.90797346,189.27,189.26,0.2]
[1753081124304,94.90797346,189.27,189.26,1e-08]
[1753081124305,68.90797346,189.27,189.26,1e-08]
[1753081124815,42.78468397,189.24,189.23,11.73907671]
[1753081125014,84.55959997,189.24,189.23,11.73907671]
[1753081125318,85.10959997,189.24,189.23,11.73907671]
[1753081125620,42.78468397,189.24,189.23,11.73907671]
[1753081125826,84.55959997,189.24,189.23,11.73907671]
[1753081125989,5.28345749,189.27,189.23,12.41907671]
[1753081126193,47.29959997,189.25,189.24,0.68]
[1753081126389,4.514916,189.25,189.24,0.68]
[1753081126603,58.55959997,189.25,189.24,0.68]
[1753081127920,63.84361582,189.25,189.24,0.68]
[1753081128413,63.84361582,189.25,189.23,11.73907671]
[1753081128895,63.84361582,189.25,189.23,12.41907671]
[1753081129811,63.84361582,189.25,189.23,11.73907671]
[1753081130015,63.84361582,189.25,189.23,12.41907671]
[1753081130619,63.84361582,189.25,189.24,0.68]
[1753081133418,63.84361582,189.25,189.23,11.73907671]
[1753081133615,63.84361582,189.25,189.23,12.41907671]
[1753081134493,4.514916,189.24,189.23,11.73907671]
[1753081134701,26.58389504,189.24,189.23,11.73907671]
[1753081135497,27.13389504,189.24,189.23,11.73907671]
[1753081138411,27.13389504,189.24,189.23,11.69736778]
[1753081140728,16.78468397,189.23,189.22,0.1]
[1753081140904,58.55959997,189.23,189.22,0.1]
[1753081141111,59.10959997,189.23,189.22,0.1]
[1753081141530,59.10959997,189.23,189.2,0.1]
[1753081141735,21.29959997,189.21,189.2,0.1]
[1753081142029,58.55959997,189.21,189.2,0.1]
[1753081142219,49.02378397,189.2,189.19,1e-08]
[1753081142424,53.53869997,189.2,189.19,1e-08]
[1753081142628,54.08869997,189.2,189.19,1e-08]
[1753081142811,59.37411223,189.2,189.19,1e-08]
[1753081143002,59.33009623,189.2,189.19,0.68000001]
[1753081143204,63.84501223,189.2,189.19,1e-08]
[1753081143619,64.39501223,189.2,189.18,0.1]
[1753081143816,21.84959997,189.19,189.18,0.1]
[1753081144515,17.33468397,189.19,189.18,0.1]
[1753081144837,26.5852916,189.19,189.18,0.1]
[1753081146867,26.5852916,189.19,189.18,1e-08]
[1753081146868,22.0703756,189.19,189.18,1e-08]
[1753081147155,26.5852916,189.19,189.18,1e-08]
[1753081147652,31.1002076,189.19,189.18,1e-08]
[1753081150581,16.78468397,189.2,189.18,0.68000001]
[1753081150759,4.514916,189.2,189.18,0.68000001]
[1753081150937,37.26,189.19,189.18,0.68000001]
[1753081153239,42.54569163,189.19,189.18,0.68000001]
[1753081154131,63.8452916,189.19,189.18,1e-08]
[1753081154333,26.5852916,189.19,189.18,1e-08]
[1753081154531,63.8452916,189.19,189.18,1e-08]
[1753081155032,0.06,189.24,189.18,5.20491601]
[1753081155249,37.26,189.23,189.19,5.204916]
[1753081155445,37.26,189.22,189.2,0.69]
[1753081158952,37.26,189.22,189.2,5.97539361]
[1753081159263,37.26,189.22,189.21,0.69]
[1753081159941,0.06,189.24,189.21,8.52882929]
[1753081160134,37.24,189.31,189.23,4.514916]
[1753081160465,37.24,189.31,189.27,4.514916]
[1753081160648,37.24,189.31,189.27,4.714916]
[1753081160835,37.24,189.31,189.28,0.69]
[1753081161377,37.24,189.29,189.28,0.69]
[1753081163569,37.3,189.29,189.28,0.69]
[1753081170587,47.09781525,189.29,189.27,0.2]
[1753081170866,4.514916,189.28,189.27,0.69]
[1753081171071,4.514916,189.28,189.25,0.89]
[1753081171366,41.734916,189.27,189.26,0.69]
[1753081171549,41.734916,189.27,189.25,0.2]
[1753081171753,37.22,189.27,189.25,0.2]
[1753081172170,37.22,189.27,189.26,0.69]
[1753081173175,47.01837349,189.27,189.25,0.2]
[1753081173360,4.514916,189.26,189.25,0.2]
[1753081173563,4.514916,189.26,189.23,0.69]
[1753081173757,42.50345749,189.27,189.22,0.2]
[1753081173758,4.514916,189.24,189.22,0.2]
[1753081174074,37.22,189.23,189.22,0.2]
[1753081174454,37.22,189.23,189.19,4.714916]
[1753081174759,37.22,189.23,189.21,4.514916]
[1753081174959,37.22,189.23,189.22,0.69]
[1753081176383,37.22,189.25,189.22,0.69]
[1753081176884,37.22,189.25,189.22,10.48976807]
[1753081177092,37.22,189.25,189.23,0.69]
[1753081178582,37.22,189.25,189.23,5.97455158]
[1753081178775,9.85786205,189.29,189.24,0.69]
[1753081178993,37.22,189.28,189.24,0.69]
[1753081179176,4.574916,189.29,189.24,0.69]
[1753081179566,0.06,189.29,189.27,4.514916]
[1753081179762,0.06,189.29,189.28,0.69]
[1753081181303,0.06,189.29,189.28,10.48809436]
[1753081181591,0.06,189.3,189.29,1.62]
[1753081181787,0.06,189.3,189.29,2.31]
[1753081182086,0.06,189.3,189.29,6.824916]
[1753081182294,0.06,189.3,189.29,5.204916]
[1753081182966,0.06,189.3,189.27,0.69]
[1753081183368,0.06,189.3,189.29,4.514916]
[1753081183605,0.06,189.3,189.28,0.68]
[1753081184191,42.50289925,189.29,189.26,0.68]
[1753081185001,42.50289925,189.29,189.27,0.68]
[1753081185002,37.22,189.29,189.27,0.68]
[1753081185375,37.28,189.29,189.27,0.68]
[1753081185589,37.28,189.29,189.28,0.68]
[1753081188285,37.28,189.29,189.25,4.714916]
[1753081188484,37.28,189.29,189.26,0.68]
[1753081188701,37.28,189.29,189.27,0.68]
[1753081189202,37.28,189.29,189.28,0.68]
[1753081190078,37.28,189.29,189.25,0.88]
[1753081190276,47.07791189,189.29,189.25,0.88]
[1753081190879,42.56299589,189.29,189.25,0.88]
[1753081191094,47.07791189,189.29,189.25,0.88]
[1753081191421,42.56299589,189.29,189.25,0.88]
[1753081191576,47.07791189,189.29,189.25,0.88]
[1753081192276,47.74791189,189.29,189.25,0.2]
[1753081192580,47.74791189,189.29,189.25,0.88]
[1753081192581,47.07791189,189.29,189.25,0.88]
[1753081192801,41.794916,189.29,189.26,0.68]
[1753081194212,37.28,189.29,189.26,0.68]
[1753081194520,41.794916,189.29,189.26,0.68]
[1753081194695,41.794916,189.29,189.25,0.2]
[1753081194881,41.794916,189.29,189.25,0.88]
[1753081195307,37.28,189.29,189.26,0.68]
[1753081195633,4.514916,189.28,189.25,0.2]
[1753081196381,4.514916,189.28,189.25,0.88]
[1753081196584,4.514916,189.27,189.24,0.23]
[1753081196786,37.2,189.26,189.24,0.03]
[1753081197087,37.2,189.26,189.25,0.68]
[1753081197492,37.2,189.26,189.25,0.49711998]
[1753081197689,4.514916,189.27,189.24,0.03]
[1753081197903,37.2,189.26,189.24,0.03]
[1753081199112,41.714916,189.26,189.24,0.03]
[1753081199618,37.2,189.26,189.24,0.03]
[1753081199788,41.714916,189.26,189.24,0.03]
[1753081200099,5.214916,189.25,189.24,0.03]
[1753081200294,4.514916,189.25,189.24,0.03]
[1753081201105,0.06,189.29,189.24,0.03]
[1753081201407,37.2,189.28,189.25,4.514916]
[1753081201711,37.2,189.28,189.26,0.68]
[1753081202292,0.06,189.29,189.27,0.68]
[1753081202510,37.2,189.28,189.27,0.68]
[1753081203926,37.2,189.28,189.27,0.88]
[1753081204302,0.06,189.29,189.24,10.50912452]
[1753081204507,37.2,189.28,189.26,0.68]
[1753081204903,37.2,189.28,189.27,0.68]
[1753081205411,0.06,189.29,189.27,0.68]
[1753081205616,37.2,189.28,189.27,0.68]
[1753081207315,37.2,189.28,189.25,0.03]
[1753081207514,37.26,189.28,189.27,0.68]
[1753081208095,37.26,189.28,189.27,5.96345749]
[1753081208388,0.06,189.28,189.27,10.47837349]
[1753081208801,0.06,189.28,189.27,10.67837349]
[1753081209006,0.06,189.3,189.27,15.19328949]
[1753081209212,0.06,189.34,189.31,26.0]
[1753081209398,0.06,189.34,189.32,4.514916]
[1753081209733,0.06,189.34,189.32,5.92312221]
[1753081210020,0.06,189.34,189.33,31.194916]
[1753081210328,0.06,189.34,189.33,36.47669912]
[1753081210892,0.06,189.34,189.33,36.67669912]
[1753081211294,0.06,189.34,189.33,40.89978618]
[1753081211491,1e-08,189.34,189.33,40.89978618]
[1753081212016,0.2,189.39,189.38,5.28038863]
[1753081212189,0.2,189.39,189.37,26.0]
[1753081212190,0.2,189.39,189.37,30.514916]
[1753081212393,0.2,189.39,189.37,0.68]
[1753081213410,0.2,189.39,189.35,36.45595855]
[1753081213621,0.2,189.39,189.37,0.66]
[1753081213797,0.2,189.39,189.36,4.514916]
[1753081213999,0.2,189.39,189.38,0.66]
[1753081215331,9.99504055,189.39,189.35,0.66]
[1753081215496,4.514916,189.37,189.33,26.66]
[1753081215697,4.514916,189.37,189.34,0.66]
[1753081215917,0.2,189.39,189.34,0.66]
[1753081216217,4.514916,189.38,189.34,0.66]
[1753081216404,5.48015222,189.39,189.34,0.66]
[1753081216602,5.48015222,189.39,189.3,39.01999999]
[1753081216603,4.514916,189.37,189.31,36.45703411]
[1753081216902,4.514916,189.34,189.29,5.94263107]
[1753081217512,4.514916,189.33,189.29,1.62205988]
[1753081217694,4.514916,189.33,189.29,0.96205988]
[1753081217896,4.514916,189.31,189.29,0.96205988]
[1753081218092,5.204916,189.32,189.29,0.96205988]
[1753081219127,5.28181069,189.33,189.29,0.96205988]
[1753081219128,4.514916,189.33,189.29,0.96205988]
[1753081219497,4.514916,189.34,189.29,1.62205988]
[1753081219699,4.514916,189.33,189.29,0.96205988]
[1753081219902,18.48233616,189.37,189.29,0.96205988]
[1753081220212,4.514916,189.34,189.29,1.62205988]
[1753081220424,4.514916,189.34,189.29,0.96205988]
[1753081220611,4.514916,189.34,189.3,0.66]
[1753081221821,5.204916,189.34,189.29,0.96205988]
[1753081222019,5.204916,189.34,189.29,1.62205988]
[1753081222619,0.69,189.34,189.29,1.62205988]
[1753081222808,10.48642422,189.34,189.29,1.62205988]
[1753081223408,5.204916,189.33,189.29,1.62205988]
[1753081223604,5.204916,189.33,189.29,1.16205987]
[1753081223923,0.69,189.32,189.29,1.16205987]
[1753081224225,4.514916,189.33,189.29,1.16205987]
[1753081224425,5.204916,189.33,189.29,1.16205987]
[1753081224601,0.69,189.33,189.29,1.16205987]
[1753081224803,5.204916,189.33,189.29,1.16205987]
[1753081225007,10.48684083,189.33,189.29,1.16205987]
[1753081225307,4.514916,189.34,189.3,0.66]
[1753081225707,5.204916,189.34,189.29,5.67697587]
[1753081225926,5.204916,189.34,189.29,1.16205987]
[1753081226226,5.204916,189.34,189.29,1.82205987]
[1753081226400,4.514916,189.35,189.3,0.66]
[1753081226802,5.204916,189.35,189.3,0.66]
[1753081227002,5.97150417,189.34,189.29,5.67697587]
[1753081227218,5.97150417,189.34,189.29,6.33697587]
[1753081227425,0.69,189.33,189.29,1.16205987]
[1753081227725,4.514916,189.33,189.29,1.82205987]
[1753081227934,5.204916,189.33,189.29,1.82205987]
[1753081228529,10.48687434,189.33,189.29,1.82205987]
[1753081229521,10.48687434,189.33,189.29,1.85205987]
[1753081229826,5.28195834,189.33,189.29,1.85205987]
[1753081230033,4.514916,189.34,189.3,0.66]
[1753081230407,10.48686262,189.33,189.29,1.19205987]
[1753081230819,4.514916,189.3,189.29,1.19205987]
[1753081231022,5.204916,189.3,189.29,1.19205987]
[1753081231224,5.204916,189.3,189.29,0.99205988]
[1753081232329,5.204916,189.3,189.29,0.03]
[1753081232847,10.48753617,189.3,189.29,0.03]
[1753081234130,5.28240517,189.31,189.29,0.03]
[1753081234325,10.48732117,189.31,189.29,0.03]
[1753081235114,5.97240517,189.31,189.29,0.03]
[1753081235335,10.48732117,189.31,189.29,0.03]
[1753081235713,4.514916,189.3,189.29,0.03]
[1753081235918,21.98959997,189.3,189.29,0.03]
[1753081236112,27.27222014,189.3,189.29,0.03]
[1753081236434,37.18,189.3,189.29,0.03]
[1753081236933,11.384116,189.32,189.29,0.03]
[1753081236934,6.1792,189.32,189.29,0.03]
[1753081237136,37.18,189.3,189.29,0.03]
[1753081237523,6.1792,189.32,189.29,0.03]
[1753081237524,6.1792,189.32,189.29,0.69]
[1753081237721,37.18,189.31,189.3,0.66]
[1753081239239,21.98959997,189.36,189.3,10.45753617]
[1753081239555,37.18,189.35,189.31,0.66]
[1753081239836,37.18,189.35,189.32,0.66]
[1753081240144,37.18,189.34,189.33,0.66]
[1753081240329,37.18,189.34,189.32,4.514916]
[1753081240520,37.18,189.35,189.32,9.79685799]
[1753081240845,6.1463,189.37,189.32,9.79685799]
[1753081240846,37.18,189.36,189.33,0.66]
[1753081241036,37.18,189.36,189.34,0.66]
[1753081241417,37.18,189.36,189.32,5.48194198]
[1753081241619,37.18,189.36,189.33,5.174916]
[1753081242234,37.18,189.36,189.34,0.66]
[1753081242433,37.18,189.36,189.32,0.19999999]
[1753081242434,0.69,189.35,189.32,0.19999999]
[1753081242847,4.514916,189.35,189.32,0.19999999]
[1753081243047,0.69,189.34,189.32,0.19999999]
[1753081243543,37.18,189.36,189.32,0.85999999]
[1753081243746,37.18,189.36,189.32,0.19999999]
[1753081244244,37.84,189.36,189.32,0.19999999]
[1753081244825,43.12094641,189.36,189.32,0.19999999]
[1753081245222,37.84,189.36,189.32,0.19999999]
[1753081245850,43.12094715,189.36,189.32,0.19999999]
[1753081246151,43.12094715,189.36,189.3,10.65746458]
[1753081246335,42.354916,189.36,189.3,10.65746458]
[1753081246534,37.18,189.36,189.31,5.174916]
[1753081246741,37.18,189.36,189.32,0.66]
[1753081247255,37.16,189.35,189.3,6.14254858]
[1753081247457,37.16,189.35,189.31,4.514916]
[1753081247632,37.16,189.35,189.32,0.66]
[1753081247828,4.574916,189.37,189.32,0.66]
[1753081248023,5.234916,189.37,189.32,0.66]
[1753081248231,37.16,189.36,189.32,0.66]
[1753081248435,5.234916,189.37,189.33,0.66]
[1753081248734,37.16,189.35,189.33,0.66]
[1753081248949,37.16,189.35,189.34,0.66]
[1753081249455,37.16,189.35,189.34,5.37491599]
[1753081249633,0.06,189.37,189.34,5.37491599]
[1753081249834,0.06,189.37,189.36,4.514916]
[1753081250247,0.06,189.37,189.36,5.174916]
[1753081250561,5.234916,189.37,189.34,0.19999999]
[1753081251362,0.06,189.37,189.34,0.19999999]
[1753081251541,0.72,189.37,189.34,0.19999999]
[1753081253854,5.174916,189.36,189.34,0.19999999]
[1753081254050,5.174916,189.36,189.33,0.19999999]
[1753081254051,0.66,189.35,189.33,0.19999999]
[1753081255344,4.514916,189.36,189.33,0.19999999]
[1753081255728,5.174916,189.36,189.33,0.19999999]
[1753081257256,0.66,189.36,189.33,0.19999999]
[1753081257446,0.66,189.35,189.33,0.19999999]
[1753081257858,16.78468397,189.36,189.32,0.88341282]
[1753081258055,16.78468397,189.36,189.33,0.66]
[1753081259062,0.06,189.37,189.35,4.514916]
[1753081259274,0.06,189.37,189.36,0.66]
[1753081259652,0.06,189.37,189.34,10.45640546]
[1753081260755,0.06,189.37,189.34,9.79640546]
[1753081261071,0.06,189.37,189.36,4.514916]
[1753081261272,0.06,189.37,189.36,4.714916]
[1753081261444,0.06,189.37,189.36,10.65586234]
[1753081262065,0.06,189.37,189.35,26.0]
[1753081262269,0.06,189.37,189.34,4.514916]
[1753081262573,0.66,189.36,189.33,0.2]
[1753081262766,5.174916,189.36,189.32,0.88341282]
[1753081263470,21.95959997,189.35,189.29,9.82772289]
[1753081263647,17.44468397,189.35,189.29,9.82772289]
[1753081263846,21.95959997,189.35,189.29,9.82772289]
[1753081264046,27.24092541,189.35,189.29,9.82772289]
[1753081264249,22.72600941,189.35,189.3,0.82327967]
[1753081264473,16.78468397,189.35,189.3,5.33819567]
[1753081264651,16.78468397,189.35,189.31,0.66]
[1753081265057,37.22,189.37,189.32,5.174916]
[1753081265251,37.22,189.37,189.33,5.174916]
[1753081265465,37.22,189.37,189.34,0.66]
[1753081265645,37.22,189.37,189.35,0.66]
[1753081266683,37.22,189.37,189.32,5.174916]
[1753081266876,4.514916,189.35,189.3,1.02327967]
[1753081267052,0.66,189.34,189.3,1.02327967]
[1753081267356,21.95959997,189.36,189.3,10.820767]
[1753081267560,21.95959997,189.36,189.31,0.66]
[1753081268173,41.734916,189.37,189.32,0.66]
[1753081268387,42.394916,189.37,189.32,0.66]
[1753081268548,0.66,189.36,189.31,4.514916]
[1753081268742,0.66,189.36,189.31,5.174916]
[1753081269177,4.514916,189.33,189.3,1.02327967]
[1753081269475,4.514916,189.33,189.3,1.48327967]
[1753081269476,37.14,189.33,189.3,1.48327967]
[1753081269654,41.654916,189.33,189.3,0.82327967]
[1753081269853,42.314916,189.33,189.3,0.82327967]
[1753081271279,37.8,189.33,189.3,0.82327967]
[1753081271572,37.14,189.33,189.3,1.48327967]
[1753081272170,41.654916,189.33,189.3,0.82327967]
[1753081272367,5.174916,189.32,189.3,0.82327967]
[1753081272671,0.66,189.32,189.3,1.02327967]
[1753081272875,5.174916,189.32,189.3,1.02327967]
[1753081273464,4.514916,189.32,189.3,1.02327967]
[1753081273666,37.14,189.33,189.3,1.74327967]
[1753081274068,37.14,189.33,189.3,6.30586368]
[1753081274254,37.14,189.33,189.31,6.00228753]
[1753081275064,41.654916,189.35,189.31,6.00228753]
[1753081276863,41.654916,189.35,189.31,5.28228753]
[1753081277068,37.14,189.35,189.32,0.72]
[1753081277973,37.14,189.35,189.31,5.28228753]
[1753081278377,37.14,189.35,189.31,6.00228753]
[1753081278567,37.14,189.35,189.31,6.20228753]
[1753081279553,37.14,189.35,189.32,0.72]
[1753081280852,41.654916,189.35,189.32,0.72]
[1753081281578,41.654916,189.35,189.31,5.48228753]
[1753081281777,42.344916,189.35,189.31,0.92]
[1753081282781,5.204916,189.34,189.31,0.2]
[1753081283389,41.654916,189.35,189.31,5.48233031]
[1753081283683,42.344916,189.35,189.31,6.20233031]
[1753081283856,41.654916,189.35,189.31,6.20233031]
[1753081284053,4.514916,189.34,189.31,0.2]
[1753081284286,5.204916,189.34,189.31,0.2]
[1753081284456,4.514916,189.34,189.31,0.2]
[1753081284657,0.69,189.33,189.31,0.2]
[1753081285381,42.42127349,189.35,189.31,0.2]
[1753081285589,4.514916,189.33,189.31,0.2]
[1753081285968,0.69,189.32,189.31,0.2]
[1753081286164,37.83,189.32,189.31,0.2]
[1753081287264,42.344916,189.32,189.31,0.2]
[1753081287589,41.654916,189.32,189.31,0.2]
[1753081287797,37.14,189.32,189.31,0.2]
[1753081290283,37.14,189.32,189.29,0.03]
[1753081290284,59.12959997,189.32,189.29,0.03]
[1753081290597,21.29959997,189.3,189.29,0.03]
[1753081290893,58.43959997,189.3,189.29,0.03]
[1753081291192,58.43959997,189.3,189.27,0.03]
[1753081291193,16.78468397,189.29,189.27,0.03]
[1753081291368,46.93809436,189.28,189.27,0.03]
[1753081291569,47.62809436,189.28,189.27,0.03]
[1753081292577,58.43959997,189.28,189.27,0.03]
[1753081293080,53.92468397,189.28,189.27,0.03]
[1753081293391,37.14,189.28,189.27,0.03]
[1753081293565,37.14,189.28,189.27,0.75]
[1753081294595,37.14,189.28,189.27,6.23345749]
[1753081294798,37.14,189.3,189.27,6.23345749]
[1753081295105,37.14,189.31,189.28,0.72]
[1753081295501,16.78468397,189.35,189.3,4.514916]
[1753081295674,37.14,189.34,189.31,0.72]
[1753081296187,37.14,189.34,189.3,0.2]
[1753081296188,4.514916,189.32,189.3,0.2]
[1753081296393,41.654916,189.32,189.3,0.2]
[1753081298395,37.14,189.32,189.3,0.2]
[1753081298592,41.654916,189.32,189.3,0.2]
[1753081298789,37.14,189.32,189.3,0.2]
[1753081299097,41.654916,189.32,189.3,0.2]
[1753081299279,41.654916,189.32,189.29,5.28279657]
[1753081299478,37.14,189.32,189.29,6.00279657]
[1753081300193,37.14,189.32,189.3,0.72]
[1753081300581,37.14,189.32,189.31,0.72]
[1753081300984,10.598316,189.36,189.31,0.92]